Workbook

Sheet 42、2021年公共预算收入
A1: 附表42
A2: 高新区2021年一般公共预算收入执行情况表
C3: 单位：万元
A4: 科目编码 | B4: 科目名称 | C4: 金额
B5: 地方一般预算收入合计 | C5: =C6+C22 -> 24902
A6: 101 | B6: （一）税收收入 | C6: =SUM(C7:C21) -> 21934
A7: 10101 | B7: 增值税 | C7: 10084
A8: 10104 | B8: 企业所得税 | C8: 4123
A9: 10106 | B9: 个人所得税 | C9: 590
A10: 10107 | B10: 资源税 | C10: 37
A11: 10109 | B11: 城市维护建设税 | C11: 1573
A12: 10110 | B12: 房产税 | C12: 1251
A13: 10111 | B13: 印花税 | C13: 714
A14: 10112 | B14: 城镇土地使用税 | C14: 854
A15: 10113 | B15: 土地增值税 | C15: 1504
A16: 10114 | B16: 车船税 | C16: 1
A17: 10118 | B17: 耕地占用税 | C17: 893
A18: 10119 | B18: 契税 | C18: 312
A19: 10120 | B19: 烟叶税
A20: 10121 | B20: 环境保护税
A21: 10199 | B21: 其他税收收入
A22: 103 | B22: （二）非税收入 | C22: =SUM(C23:C30) -> 2969
A23: 10302 | B23: 专项收入 | C23: 1093
A24: 10304 | B24: 行政事业性收费收入 | C24: 1448
A25: 10305 | B25: 罚没收入 | C25: 12
A26: 10306 | B26: 国有资本经营收入
A27: 10307 | B27: 国有资源（资产）有偿使用收入 | C27: 416
A28: 10308 | B28: 捐赠收入
A29: 10309 | B29: 政府住房基金收入
A30: 10399 | B30: 其他收入
A31: 110 | B31: 二、转移性收入 | C31: =C32+C34+C69+C97+C103+C109 -> 31375
A32: 11001 | B32: （一）返还性收入 | C32: =C33 -> 333
A33: 1100199 | B33: 其它返还性收入 | C33: 333
A34: 11002 | B34: （二）一般性转移支付收入 | C34: =SUM(C35:C68) -> 12176
A35: 1100201 | B35: 体制补助收入
A36: 1100202 | B36: 均衡性转移支付收入 | C36: 442
A37: 1100207 | B37: 县级基本财力保障机制奖补资金收入 | C37: 2003
A38: 1100208 | B38: 结算补助收入 | C38: 7000
A39: 1100220 | B39: 基层公检法司转移支付收入
A40: 1100221 | B40: 城乡义务教育转移支付收入
A41: 1100222 | B41: 基本养老金转移支付收入
A42: 1100225 | B42: 产粮大县奖励资金收入
A43: 1100226 | B43: 重点生态功能区转移支付收入
A44: 1100227 | B44: 固定数额补助收入 | C44: 1859
A45: 1100228 | B45: 革命老区转移支付收入
A46: 1100229 | B46: 民族地区转移支付收入
A47: 1100241 | B47: 一般公共服务共同财政事权转移支付收入
A48: 1100242 | B48: 外交共同财政事权转移支付收入
A49: 1100243 | B49: 国防支出共同财政事权转移支付收入
A50: 1100244 | B50: 公共安全共同财政事权转移支付收入
A51: 1100245 | B51: 教育共同财政事权转移支付收入
A52: 1100246 | B52: 科学技术共同财政事权转移支付收入
A53: 1100247 | B53: 文化旅游体育与传媒共同财政事权转移支付收入
A54: 1100248 | B54: 社会保障和就业共同财政事权转移支付收入
A55: 1100249 | B55: 卫生健康共同财政事权转移支付收入
A56: 1100250 | B56: 节能环保 共同财政事权转移支付收入
A57: 1100251 | B57: 城乡社区共同财政事权转移支付收入
A58: 1100252 | B58: 农林水 共同财政事权转移支付收入
A59: 1100253 | B59: 交通运输 共同财政事权转移支付收入
A60: 1100254 | B60: 资源勘探工业信息等共同财政事权转移支付收入
A61: 1100255 | B61: 商业服务业等 共同财政事权转移支付收入
A62: 1100256 | B62: 金融共同财政事权转移支付收入
A63: 1100257 | B63: 自然资源海洋气象等共同财政事权转移支付收入
A64: 1100258 | B64: 住房保障共同财政事权转移支付收入
A65: 1100260 | B65: 灾害防治及应急管理共同财政事权转移支付收入
A66: 1100259 | B66: 粮油物资储备共同财政事权转移支付收入
A67: 1100260 | B67: 灾害防治及应急管理共同财政事权转移支付收入
A68: 1100299 | B68: 其他一般性转移支付收入 | C68: 872
A69: 11003 | B69: （三）专项转移支付收入 | C69: =SUM(C70:C90) -> 5804
A70: 1100301 | B70: 一般公共服务 | C70: 78
A71: 1100302 | B71: 外交
A72: 1100303 | B72: 国防支出
A73: 1100304 | B73: 公共安全
A74: 1100305 | B74: 教育
A75: 1100306 | B75: 科学技术 | C75: 100
A76: 1100307 | B76: 文化旅游体育与传媒 | C76: 30
A77: 1100308 | B77: 社会保障和就业 | C77: 3412
A78: 1100310 | B78: 卫生健康 | C78: 598
A79: 1100311 | B79: 节能环保
A80: 1100312 | B80: 城乡社区 | C80: 72
A81: 1100313 | B81: 农林水 | C81: 1348
A82: 1100314 | B82: 交通运输
A83: 1100315 | B83: 资源勘探工业信息等 | C83: 66
A84: 1100316 | B84: 商业服务业等 | C84: 100
A85: 1100317 | B85: 金融
A86: 1100320 | B86: 自然资源海洋气象等
A87: 1100321 | B87: 住房保障
A88: 1100322 | B88: 粮油物资储备
A89: 1100324 | B89: 灾害防治及应急管理
A90: 1100399 | B90: 其他收入
A91: 1100299 | B91: 其他一般性转移支付收入
A92: 11006 | B92: （四）下级上解收入
A93: 1100601 | B93: 体制上解收入
A94: 1100602 | B94: 专项上解收入
A95: 11008 | B95: （五）上年结转收入 | C95: =SUM(C96:C96) -> 0
B96: 上年专项结转
A97: 11009 | B97: （六）调入资金 | C97: =C98 -> 13062
A98: 1100901 | B98: 调入一般公共预算资金 | C98: =SUM(C99:C102) -> 13062
A99: 110090102 | B99: 从政府性基金预算调入一般公共预算资金
A100: 110090103 | B100: 从国有资本经营预算调入一般公共预算资金
A101: 110090104 | B101: 从抗疫特别国债调入一般公共预算资金
A102: 110090199 | B102: 从其他资金调入一般公共预算资金 | C102: 13062
A103: 11011 | B103: （七）债务转贷收入 | C103: =C104 -> 0
A104: 1101101 | B104: 地方政府一般债务转贷收入 | C104: =C105+C108 -> 0
A105: 110110101 | B105: 地方政府一般债券转贷收入 | C105: =SUM(C106:C107) -> 0
B106: 新增债券
B107: 再融资债券
A108: 110110103 | B108: 地方政府向国际组织借款转贷收入
A109: 11015 | B109: （八）动用预算稳定调节基金
B111: 收 入 总 计 | C111: =C5+C31 -> 56278

Sheet 43、2021年共公预算支出
A1: 附表43
A2: 高新区2021年一般公共预算支出执行情况表
C3: 单位：万元
A4: 科目编码 | B4: 科目名称 | C4: 金额
B5: 一、地方一般公共预算支出合计 | C5: =C6+C38+C40+C45+C50+C55+C62+C109+C140+C147+C155+C177+C183+C188+C190+C193+C198+C207+C186 -> 42020
A6: 201 | B6: 一般公共服务 | C6: =C9+C12+C15+C19+C21+C23+C25+C27+C30+C34+C36+C32+C7 -> 7040
A7: 20101 | B7: 人大事务 | C7: =C8 -> 4
A8: 2010108 | B8: 代表工作 | C8: 4
A9: 20103 | B9: 政府办公厅(室)及相关机构事务 | C9: =C10+C11 -> 4674
A10: 2010301 | B10: 行政运行 | C10: 1291
A11: 2010399 | B11: 其他政府办公厅（室）及相关机构事务支出 | C11: 3383
A12: 20105 | B12: 统计信息事务 | C12: =C13+C14 -> 11
A13: 2010501 | B13: 行政运行 | C13: 9
A14: 2010507 | B14: 专项普查活动 | C14: 3
A15: 20106 | B15: 财政事务 | C15: =SUM(C16:C18) -> 264
A16: 2010601 | B16: 行政运行 | C16: 201
A17: 2010605 | B17: 财政国库业务 | C17: 35
A18: 2010699 | B18: 其他财政事务支出 | C18: 29
A19: 20107 | B19: 税收事务 | C19: 800
A20: 2010701 | B20: 行政运行 | C20: 800
A21: 20108 | B21: 审计事务 | C21: =C22 -> 135
A22: 2010804 | B22: 审计业务 | C22: 135
A23: 20111 | B23: 纪检监察事务 | C23: =C24 -> 3
A24: 2011199 | B24: 其他纪检监察事务支出 | C24: 3
A25: 20113 | B25: 商贸事务 | C25: =C26 -> 214
A26: 2011308 | B26: 招商引资 | C26: 214
A27: 20129 | B27: 群众团体事务 | C27: =C28+C29 -> 9
A28: 2012906 | B28: 工会事务 | C28: 8
A29: 2012999 | B29: 其他群众团体事务支出 | C29: 1
A30: 20132 | B30: 组织事务 | C30: =C31 -> 703
A31: 2013299 | B31: 其他组织事务支出 | C31: 703
A32: 20133 | B32: 宣传事务 | C32: =C33 -> 150
A33: 2013399 | B33: 其他宣传事务支出 | C33: 150
A34: 20134 | B34: 统战事务 | C34: =C35 -> 1
A35: 2013404 | B35: 宗教事务 | C35: 1
A36: 20138 | B36: 市场监督管理事务 | C36: =C37 -> 71
A37: 2013899 | B37: 其他市场监督管理事务 | C37: 71
A38: 203 | B38: 国防支出 | C38: 8
A39: 20399 | B39: 其他国防支出 | C39: 8
A40: 204 | B40: 公共安全支出 | C40: =C41+C43 -> 452
A41: 20402 | B41: 公安 | C41: =C42 -> 428
A42: 2040299 | B42: 其他公安支出 | C42: 428
A43: 20406 | B43: 司法 | C43: =C44 -> 23
A44: 2040699 | B44: 其他司法支出 | C44: 23
A45: 205 | B45: 教育支出 | C45: =C46 -> 9717
A46: 20502 | B46: 普通教育 | C46: =SUM(C47:C49) -> 9717
A47: 2050201 | B47: 学前教育 | C47: 315
A48: 2050202 | B48: 小学教育 | C48: 7096
A49: 2050203 | B49: 初中教育 | C49: 2306
A50: 206 | B50: 科学技术支出 | C50: =C51+C53 -> 222
A51: 20601 | B51: 科学技术管理事务 | C51: =C52 -> 19
A52: 2060199 | B52: 其他科学技术管理事务支出 | C52: 19
A53: 20604 | B53: 技术研究与开发 | C53: =C54 -> 203
A54: 2060404 | B54: 科技成果转化与扩散 | C54: 203
A55: 207 | B55: 文化旅游体育与传媒支出 | C55: =C56+C58+C60 -> 44
A56: 20701 | B56: 文化和旅游 | C56: =C57 -> 23
A57: 2070109 | B57: 群众文化 | C57: 23
A58: 20702 | B58: 文物 | C58: =C59 -> 20
A59: 2070204 | B59: 文物保护 | C59: 20
A60: 20706 | B60: 新闻出版电影 | C60: =C61 -> 2
A61: 2070607 | B61: 电影 | C61: 2
A62: 208 | B62: 社会保障和就业支出 | C62: =C63+C67+C70+C75+C77+C80+C83+C89+C93+C96+C98+C101+C106+C108+C104 -> 7875
A63: 20801 | B63: 人力资源和社会保障管理事务 | C63: =SUM(C64:C66) -> 130
A64: 2080101 | B64: 行政运行 | C64: 53
A65: 2080107 | B65: 社会保险业务管理事务 | C65: 66
A66: 2080199 | B66: 其他人力资源和社会保障管理事务支出 | C66: 11
A67: 20802 | B67: 民政管理事务 | C67: =SUM(C68:C69) -> 495
A68: 2080208 | B68: 基层政权建设和社区治理 | C68: 451
A69: 2080299 | B69: 其他民政管理事务支出 | C69: 44
A70: 20805 | B70: 行政事业单位养老支出 | C70: =SUM(C71:C74) -> 1342
A71: 2080505 | B71: 机关事业单位基本养老保险缴费支出 | C71: 1153
A72: 2080506 | B72: 机关事业单位职业年金缴费支出 | C72: 97
A73: 2080507 | B73: 对机关事业单位基本养老保险基金的补助
A74: 2080599 | B74: 其他行政事业单位养老支出 | C74: 92
A75: 20807 | B75: 就业补助 | C75: =C76 -> 36
A76: 2080705 | B76: 公益性岗位补贴 | C76: 36
A77: 20808 | B77: 抚恤 | C77: =SUM(C78:C79) -> 1120
A78: 2080802 | B78: 伤残抚恤 | C78: 1018
A79: 2080805 | B79: 义务兵优待 | C79: 102
A80: 20809 | B80: 退役安置 | C80: =C81+C82 -> 197
A81: 2080901 | B81: 退役士兵安置 | C81: 190
A82: 2080905 | B82: 军队转业干部安置 | C82: 7
A83: 20810 | B83: 社会福利 | C83: =C84+C85+C86+C87+C88 -> 174
A84: 2081001 | B84: 儿童福利 | C84: 36
A85: 2081002 | B85: 老年福利 | C85: 104
A86: 2081004 | B86: 殡葬 | C86: 10
A87: 2081005 | B87: 社会福利事业单位 | C87: 20
A88: 2081099 | B88: 其他社会福利支出 | C88: 4
A89: 20811 | B89: 残疾人事业 | C89: =C90+C91+C92 -> 191
A90: 2081104 | B90: 残疾人康复 | C90: 56
A91: 2081105 | B91: 残疾人就业
A92: 2081107 | B92: 残疾人生活和护理补贴 | C92: 135
A93: 20819 | B93: 最低生活保障 | C93: =C94+C95 -> 420
A94: 2081901 | B94: 城市最低生活保障金支出
A95: 2081902 | B95: 农村最低生活保障金支出 | C95: 420
A96: 20820 | B96: 临时救助 | C96: =C97 -> 0
A97: 2082001 | B97: 临时救助支出
A98: 20821 | B98: 特困人员救助供养 | C98: =C99+C100 -> 1857
A99: 2082101 | B99: 城市特困人员救助供养支出 | C99: 403
A100: 2082102 | B100: 农村特困人员救助供养支出 | C100: 1454
A101: 20826 | B101: 财政对基本养老保险基金的补助 | C101: =C102+C103 -> 1839
A102: 2082601 | B102: 财政对企业职工基本养老保险基金的补助 | C102: 782
A103: 2082602 | B103: 财政对城乡居民基本养老保险基金的补助 | C103: 1057
A104: 20827 | B104: 财政对其他社会保险基金的补助 | C104: =C105 -> 2
A105: 2082799 | B105: 其他财政对社会保险基金的补助 | C105: 2
A106: 20828 | B106: 退役军人管理事务 | C106: =C107 -> 53
A107: 2082801 | B107: 行政运行 | C107: 53
A108: 2089999 | B108: 其他社会保障和就业支出 | C108: 21
A109: 210 | B109: 卫生健康支出 | C109: =C110+C114+C117+C138+C134+C127+C131+C124+C112+C122+C136 -> 3911
A110: 21001 | B110: 卫生健康管理事务 | C110: =C111 -> 13
A111: 2100199 | B111: 其他卫生健康管理事务支出 | C111: 13
A112: 21002 | B112: 公立医院 | C112: =C113 -> 80
A113: 2100299 | B113: 其他公立医院支出 | C113: 80
A114: 21003 | B114: 基层医疗卫生机构 | C114: =C115+C116 -> 281
A115: 2100302 | B115: 乡镇卫生院 | C115: 158
A116: 2100399 | B116: 其他基层医疗卫生机构支出 | C116: 123
A117: 21004 | B117: 公共卫生 | C117: =C118+C119+C120+C121 -> 881
A118: 2100401 | B118: 疾病预防控制机构 | C118: 58
A119: 2100408 | B119: 基本公共卫生服务 | C119: 457
A120: 2100409 | B120: 重大公共卫生服务 | C120: 342
A121: 2100499 | B121: 其他公共卫生支出 | C121: 24
A122: 21006 | B122: 中医药 | C122: =C123 -> 10
A123: 2100601 | B123: 中医药专项 | C123: 10
A124: 21007 | B124: 计划生育事务 | C124: =C125+C126 -> 160
A125: 2100717 | B125: 计划生育服务 | C125: 61
A126: 2100799 | B126: 其他计划生育事务支出 | C126: 99
A127: 21011 | B127: 行政事业单位医疗 | C127: =C128+C129+C130 -> 805
A128: 2101101 | B128: 行政单位医疗 | C128: 40
A129: 2101102 | B129: 事业单位医疗 | C129: 741
A130: 2101103 | B130: 公务员医疗补助 | C130: 25
A131: 21012 | B131: 财政对基本医疗保险基金的补助 | C131: =C132+C133 -> 1473
A132: 2101202 | B132: 财政对城乡居民基本医疗保险基金的补助 | C132: 1399
A133: 2101299 | B133: 财政对其他基本医疗保险基金的补助 | C133: 74
A134: 21013 | B134: 医疗救助 | C134: =C135 -> 159
A135: 2101301 | B135: 城乡医疗救助 | C135: 159
A136: 21014 | B136: 优抚对象医疗 | C136: 27
A137: 2101401 | B137: 其他优抚对象医疗 | C137: 27
A138: 21015 | B138: 医疗保障管理事务 | C138: =C139 -> 21
A139: 2101599 | B139: 其他医疗保障管理事务支出 | C139: 21
A140: 211 | B140: 节能环保支出 | C140: =C141+C143+C145 -> 126
A141: 21101 | B141: 环境保护管理事务 | C141: =C142 -> 50
A142: 2110199 | B142: 其他环境保护管理事务支出 | C142: 50
A143: 21103 | B143: 污染防治 | C143: =C144 -> 6
A144: 2110302 | B144: 水体 | C144: 6
A145: 21104 | B145: 自然生态保护 | C145: =C146 -> 70
A146: 2110402 | B146: 农村环境保护 | C146: 70
A147: 212 | B147: 城乡社区支出 | C147: =C148+C152+C154 -> 682
A148: 21201 | B148: 城乡社区管理事务 | C148: =C149+C150+C151 -> 384
A149: 2120101 | B149: 行政运行 | C149: 131
A150: 2120104 | B150: 城管执法 | C150: 248
A151: 2120199 | B151: 其他城乡社区管理事务支出 | C151: 5
A152: 21205 | B152: 城乡社区环境卫生 | C152: =C153 -> 266
A153: 2120501 | B153: 城乡社区环境卫生 | C153: 266
A154: 21299 | B154: 其他城乡社区支出 | C154: 32
A155: 213 | B155: 农林水支出 | C155: =C156+C164+C170+C172+C162+C176 -> 4231
A156: 21301 | B156: 农业农村 | C156: =C157+C158+C160+C161+C159 -> 956
A157: 2130101 | B157: 行政运行 | C157: 80
A158: 2130108 | B158: 病虫害控制 | C158: 248
A159: 2130122 | B159: 农业生产发展 | C159: 40
A160: 2130142 | B160: 农村道路建设 | C160: 10
A161: 2130199 | B161: 其他农业农村支出 | C161: 578
A162: 21302 | B162: 林业和草原 | C162: =C163 -> 30
A163: 2130207 | B163: 森林资源管理 | C163: 30
A164: 21303 | B164: 水利 | C164: =C165+C168+C167+C169+C166 -> 245
A165: 2130311 | B165: 水资源节约管理与保护 | C165: 40
A166: 2130314 | B166: 防汛 | C166: 50
A167: 2130316 | B167: 农村水利 | C167: 29
A168: 2130321 | B168: 大中型水库移民后期扶持专项支出 | C168: 98
A169: 2130399 | B169: 其他水利支出 | C169: 28
A170: 21305 | B170: 巩固脱贫衔接乡村振兴 | C170: =C171 -> 2609
A171: 2130599 | B171: 其他巩固脱贫衔接乡村振兴支出 | C171: 2609
A172: 21307 | B172: 农村综合改革 | C172: =C173+C174+C175 -> 349
A173: 2130701 | B173: 对村级公益事业建设的补助 | C173: 56
A174: 2130706 | B174: 对村集体经济组织的补助 | C174: 239
A175: 2130799 | B175: 其他农村综合改革支出 | C175: 54
A176: 21399 | B176: 其他农林水支出 | C176: 42
A177: 214 | B177: 交通运输支出 | C177: =C178+C181 -> 489
A178: 21401 | B178: 公路水路运输 | C178: =C179+C180 -> 371
A179: 2140104 | B179: 公路建设 | C179: 175
A180: 2140106 | B180: 公路养护 | C180: 196
A181: 21402 | B181: 铁路运输 | C181: =C182 -> 117
A182: 2140204 | B182: 铁路路网建设 | C182: 117
A183: 215 | B183: 资源勘探工业信息等支出 | C183: =C184 -> 5455
A184: 21508 | B184: 支持中小企业发展和管理支出 | C184: 5455
A185: 2150899 | B185: 其他支持中小企业发展和管理支出 | C185: 5455
A186: 216 | B186: 商业服务业等支出 | C186: 100
A187: 21699 | B187: 其他商业服务业等支出 | C187: 100
A188: 219 | B188: 援助其他地区支出 | C188: 30
A189: 21999 | B189: 其他支出 | C189: 30
A190: 220 | B190: 自然资源海洋气象等支出 | C190: 20
A191: 22001 | B191: 自然资源事务 | C191: 20
A192: 2200104 | B192: 自然资源规划及管理 | C192: 20
A193: 221 | B193: 住房保障支出 | C193: =C196+C194 -> 892
A194: 22101 | B194: 保障性安居工程支出 | C194: 34
A195: 2210105 | B195: 农村危房改造 | C195: 34
A196: 22102 | B196: 住房改革支出 | C196: =C197 -> 858
A197: 2210201 | B197: 住房公积金 | C197: 858
A198: 224 | B198: 灾害防治及应急管理支出 | C198: =C199+C202+C205 -> 449
A199: 22401 | B199: 应急管理事务 | C199: =C200+C201 -> 27
A200: 2240106 | B200: 安全监管 | C200: 14
... 19 more rows

Sheet 44、本级政府基金收入
A1: 附表44
A2: 高新区2021年政府性基金预算收入执行情况表
C3: 单位：万元
A4: 科目编码 | B4: 科目名称 | C4: 金额
B5: 地方政府性基金收入合计 | C5: =C6 -> 10623
A6: 10301 | B6: 政府性基金收入 | C6: =C7+C13 -> 10623
A7: 1030148 | B7: 国有土地使用权出让收入 | C7: 9223
A8: 103014801 | B8: 土地出让价款收入 | C8: 9223
A9: 103014802 | B9: 补缴的土地价款
A10: 103014803 | B10: 划拨土地收入
A11: 103014898 | B11: 缴纳新增建设用地土地有偿使用费
A12: 103014899 | B12: 其他土地出让收入
A13: 1030156 | B13: 城市基础设施配套费收入 | C13: 1400
A14: 1030178 | B14: 污水处理费收入
B15: 转移性收入合计 | C15: =C16+C18+C19+C21+C22 -> 377
A16: 11004 | B16: 一、政府性基金转移支付收入 | C16: =SUM(C17:C17) -> 377
A17: 1100401 | B17: 政府性基金补助收入 | C17: 377
A18: 11006 | B18: 二、政府性基金上解收入
A19: 11008 | B19: 三、 上年结余收入 | C19: =C20 -> 0
A20: 1100802 | B20: 政府性基金预算上年结余收入
A21: 11009 | B21: 四、调入资金
A22: 11011 | B22: 五、 债务转贷收入 | C22: =C23 -> 0
A23: 1101102 | B23: 地方政府专项债务转贷收入 | C23: =SUM(C24:C28) -> 0
A24: 110110211 | B24: 国有土地使用权出让金债务转贷收入
A25: 110110231 | B25: 土地储备专项债券转贷收入
A26: 110110233 | B26: 棚户区改造专项债券转贷收入
A27: 110110298 | B27: 其他地方自行试点项目收益专项债券转贷收入
A28: 110110299 | B28: 其他政府性基金债务转贷收入
B29: 收入总计 | C29: =C5+C15 -> 11000

Sheet 45、本级政府基金支出
A1: 附表45
A2: 高新区2021年政府性基金预算支出执行情况表
C3: 单位：万元
A4: 科目编码 | B4: 科目名称 | C4: 金额
B5: 地方政府性基金支出合计 | C5: =C6+C11+C21+C27 -> 11000
A6: 208 | B6: 一、社会保障和就业支出 | C6: =C7 -> 250
A7: 20822 | B7: 大中型水库移民后期扶持基金支出 | C7: =SUM(C8:C10) -> 250
A8: 2082201 | B8: 移民补助 | C8: 156
A9: 2082202 | B9: 基础设施建设和经济发展 | C9: 94
A10: 2082299 | B10: 其他大中型水库移民后期扶持资金支出
A11: 212 | B11: 二、城乡社区支出 | C11: =C12+C17+C16 -> 9738
A12: 21208 | B12: 国有土地使用权出让收入安排的支出 | C12: =C13+C14+C15 -> 3286
A13: 2120801 | B13: 征地和拆迁补偿支出 | C13: 3286
A14: 2120805 | B14: 补助被征地农民支出
A15: 2120806 | B15: 土地出让业务支出
A16: 2120899 | B16: 其他国有土地使用权出让收入安排的支出 | C16: 5052
A17: 21213 | B17: 城市基础设施配套费安排的支出 | C17: =C18+C19 -> 1400
A18: 2121301 | B18: 城市公共设施 | C18: 210
A19: 2121302 | B19: 城市环境卫生 | C19: 1190
A20: 2121399 | B20: 其他城市基础设施配套费安排的支出
A21: 229 | B21: 三、其他支出 | C21: 127
A22: 22960 | B22: 彩票公益金安排的支出 | C22: 127
A23: 2296002 | B23: 用于社会福利的彩票公益金支出 | C23: 20
A24: 2296003 | B24: 用于体育事业的彩票公益金支出 | C24: 46
A25: 2296006 | B25: 用于残疾人事业的彩票公益金支出 | C25: 13
A26: 2296013 | B26: 用于城乡医疗求助的彩票公益金支出 | C26: 48
A27: 232 | B27: 四、债务付息支出 | C27: =C29 -> 885
A28: 23204 | B28: 地方政府专项债务付息支出 | C28: =C29 -> 885
A29: 2320411 | B29: 国有土地使用权出让金债务付息支出 | C29: 885
B30: 转移性支出合计
A31: 230 | B31: 一、转移性支出 | C31: =C32+C33+C35+C37 -> 0
A32: 23004 | B32: 政府性基金转移支付
A33: 23008 | B33: 调出资金 | C33: =C34 -> 0
A34: 2300802 | B34: 政府性基金预算调出资金
A35: 23009 | B35: 年终结余 | C35: =C36 -> 0
A36: 2300902 | B36: 政府性基金预算年终结余
A37: 23011 | B37: 债务转贷支出
A38: 231 | B38: 二、债务还本支出 | C38: =C39+C41 -> 0
A39: 23104 | B39: 地方政府专项债务还本支出 | C39: =C40 -> 0
A40: 2310411 | B40: 国有土地使用权出让金债务还本支出
A41: 23105 | B41: 抗疫特别国债还本支出
B42: 支出总计 | C42: 11000
